[Event "*** Titled Tuesday Blitz"]
[Site "Chess.com"]
[Date "2020.05.05"]
[Round "1"]
[White "kasparicy"]
[Black "Tayson_7"]
[Result "0-1"]
[WhiteElo "2293"]
[BlackElo "2614"]
[TimeControl "180+1"]
[EndTime "10:06:59 PDT"]
[Termination "Tayson_7 won on time"]

1. e4 {[%clk 0:03:00.9]} 1... e5 {[%clk 0:02:58.2]} 2. Nf3 {[%clk 0:03:00.2]}
2... Nc6 {[%clk 0:02:58.1]} 3. Bc4 {[%clk 0:02:59.6]} 3... Nf6 {[%clk
0:02:56.6]} 4. d3 {[%clk 0:02:57.8]} 4... h6 {[%clk 0:02:56.9]} 5. c3 {[%clk
0:02:57.7]} 5... d6 {[%clk 0:02:56.9]} 6. Bb3 {[%clk 0:02:57.7]} 6... g5 {[%clk
0:02:56.3]} 7. h3 {[%clk 0:02:52]} 7... Bg7 {[%clk 0:02:40.8]} 8. Nbd2 {[%clk
0:02:50.8]} 8... Be6 {[%clk 0:02:35.6]} 9. Nf1 {[%clk 0:02:45.3]} 9... d5 {[%clk
0:02:22.4]} 10. Qe2 {[%clk 0:02:44.1]} 10... Qd6 {[%clk 0:02:22.2]} 11. Ng3
{[%clk 0:02:38.6]} 11... O-O-O {[%clk 0:02:21.7]} 12. Bd2 {[%clk 0:02:29.8]}
12... Na5 {[%clk 0:02:15.6]} 13. Bc2 {[%clk 0:02:28.7]} 13... dxe4 {[%clk
0:02:15.4]} 14. dxe4 {[%clk 0:02:28.4]} 14... Bc4 {[%clk 0:02:12]} 15. Qe3
{[%clk 0:02:28.3]} 15... Qa6 {[%clk 0:01:39.3]} 16. Nf5 {[%clk 0:02:26.3]} 16...
Nh5 {[%clk 0:01:25]} 17. Nxg7 {[%clk 0:02:16.1]} 17... Nf4 {[%clk 0:00:57.4]}
18. Rg1 {[%clk 0:01:04.6]} 18... Bd3 {[%clk 0:00:50.8]} 19. O-O-O {[%clk
0:00:39.8]} 19... Nc4 {[%clk 0:00:33.4]} 20. Bxd3 {[%clk 0:00:18.9]} 20... Nxd3+
{[%clk 0:00:31.1]} 21. Kc2 {[%clk 0:00:19.2]} 21... Qa4+ {[%clk 0:00:27.8]} 22.
Kb1 {[%clk 0:00:16.9]} 22... Na3+ {[%clk 0:00:24.6]} 23. Ka1 {[%clk 0:00:09.4]}
23... Nc2+ {[%clk 0:00:24.4]} 24. Kb1 {[%clk 0:00:09.9]} 24... Nxe3 {[%clk
0:00:24.3]} 25. Bxe3 {[%clk 0:00:10.2]} 25... Qxe4 {[%clk 0:00:24.4]} 26. Ka1
{[%clk 0:00:07.4]} 26... Qg6 {[%clk 0:00:23.5]} 27. Rxd3 {[%clk 0:00:05.4]}
27... Qxd3 {[%clk 0:00:19.5]} 28. Nh5 {[%clk 0:00:01.3]} 28... e4 {[%clk
0:00:18.6]} 0-1

[Event "*** Titled Tuesday Blitz"]
[Site "Chess.com"]
[Date "2020.05.05"]
[Round "1"]
[White "larisakalinina"]
[Black "OhanyanEminChess"]
[Result "0-1"]
[WhiteElo "2033"]
[BlackElo "2486"]
[TimeControl "180+1"]
[EndTime "10:07:02 PDT"]
[Termination "OhanyanEminChess won on time"]

1. e4 {[%clk 0:03:00.9]} 1... e6 {[%clk 0:02:59.4]} 2. d3 {[%clk 0:02:58.9]}
2... d5 {[%clk 0:02:59.9]} 3. Qe2 {[%clk 0:02:58.2]} 3... Nf6 {[%clk 0:03:00.4]}
4. Nf3 {[%clk 0:02:57.1]} 4... Be7 {[%clk 0:02:59.6]} 5. g3 {[%clk 0:02:55.1]}
5... c5 {[%clk 0:02:59.9]} 6. Bg2 {[%clk 0:02:54.9]} 6... Nc6 {[%clk 0:03:00.6]}
7. O-O {[%clk 0:02:54.5]} 7... O-O {[%clk 0:03:01.1]} 8. e5 {[%clk 0:02:53.9]}
8... Nd7 {[%clk 0:02:59.9]} 9. h4 {[%clk 0:02:45.6]} 9... Qc7 {[%clk 0:02:57.7]}
10. Re1 {[%clk 0:02:44.6]} 10... f5 {[%clk 0:02:57.2]} 11. exf6 {[%clk
0:02:39.4]} 11... Nxf6 {[%clk 0:02:54.6]} 12. Bf4 {[%clk 0:02:32.1]} 12... Bd6
{[%clk 0:02:54.3]} 13. Bxd6 {[%clk 0:02:31.1]} 13... Qxd6 {[%clk 0:02:55.2]} 14.
Nc3 {[%clk 0:02:22.9]} 14... Bd7 {[%clk 0:02:53]} 15. Bh3 {[%clk 0:02:15.8]}
15... Rae8 {[%clk 0:02:51.6]} 16. Ne5 {[%clk 0:02:12.9]} 16... Nxe5 {[%clk
0:02:48.1]} 17. Qxe5 {[%clk 0:02:13.2]} 17... Qxe5 {[%clk 0:02:49]} 18. Rxe5
{[%clk 0:02:12.9]} 18... d4 {[%clk 0:02:49.9]} 19. Ne2 {[%clk 0:01:58]} 19...
Nd5 {[%clk 0:02:49.6]} 20. c4 {[%clk 0:01:50.4]} 20... dxc3 {[%clk 0:02:48.1]}
21. Nxc3 {[%clk 0:01:47.2]} 21... Nxc3 {[%clk 0:02:46]} 22. bxc3 {[%clk
0:01:46.5]} 22... b6 {[%clk 0:02:46.9]} 23. Rae1 {[%clk 0:01:39.1]} 23... Rf3
{[%clk 0:02:43.4]} 24. Bf1 {[%clk 0:01:26.4]} 24... Kf8 {[%clk 0:02:40.5]} 25.
Kg2 {[%clk 0:01:23.2]} 25... Bc6 {[%clk 0:02:36.6]} 26. Kg1 {[%clk 0:01:15.4]}
26... Rf6 {[%clk 0:02:34.9]} 27. Bg2 {[%clk 0:01:08.7]} 27... Bxg2 {[%clk
0:02:33.6]} 28. Kxg2 {[%clk 0:01:07.7]} 28... Rd8 {[%clk 0:02:34.5]} 29. R1e3
{[%clk 0:01:03.3]} 29... Ke7 {[%clk 0:02:34.1]} 30. f4 {[%clk 0:01:00.3]} 30...
Rd6 {[%clk 0:02:31.6]} 31. Kf3 {[%clk 0:00:57]} 31... Kd7 {[%clk 0:02:29.3]} 32.
g4 {[%clk 0:00:57.2]} 32... g6 {[%clk 0:02:28]} 33. h5 {[%clk 0:00:55.3]} 33...
Rf8 {[%clk 0:02:14.4]} 34. hxg6 {[%clk 0:00:53.4]} 34... hxg6 {[%clk 0:02:15.3]}
35. Rg5 {[%clk 0:00:53.1]} 35... Rg8 {[%clk 0:02:12.3]} 36. f5 {[%clk
0:00:51.7]} 36... exf5 {[%clk 0:02:11.5]} 37. gxf5 {[%clk 0:00:50.6]} 37... Rf8
{[%clk 0:02:09.7]} 38. Kg4 {[%clk 0:00:47.8]} 38... gxf5+ {[%clk 0:02:07.4]} 39.
Rxf5 {[%clk 0:00:48.1]} 39... Rg6+ {[%clk 0:02:08]} 40. Kf4 {[%clk 0:00:46.3]}
40... Rxf5+ {[%clk 0:02:08.3]} 41. Kxf5 {[%clk 0:00:45.9]} 41... Rg2 {[%clk
0:02:09.2]} 42. a4 {[%clk 0:00:43.6]} 42... Ra2 {[%clk 0:02:08.9]} 43. Re4
{[%clk 0:00:42.7]} 43... Rd2 {[%clk 0:02:08.6]} 44. d4 {[%clk 0:00:41]} 44...
Kd6 {[%clk 0:02:04.6]} 45. Rh4 {[%clk 0:00:33.8]} 45... Kd5 {[%clk 0:02:03.4]}
46. dxc5 {[%clk 0:00:32.7]} 46... Kxc5 {[%clk 0:01:40.6]} 47. Rh7 {[%clk
0:00:23.1]} 47... a5 {[%clk 0:01:39.6]} 48. Ke4 {[%clk 0:00:20.2]} 48... Ra2
{[%clk 0:01:38.4]} 49. Kd3 {[%clk 0:00:15.8]} 49... Rxa4 {[%clk 0:01:37.8]} 50.
Rh5+ {[%clk 0:00:16.1]} 50... Kc6 {[%clk 0:01:37.8]} 51. c4 {[%clk 0:00:15.9]}
51... Ra1 {[%clk 0:01:37.5]} 52. Kd4 {[%clk 0:00:13.4]} 52... Rd1+ {[%clk
0:01:37.2]} 53. Kc3 {[%clk 0:00:13.3]} 53... Rd6 {[%clk 0:01:38.1]} 54. Kb3
{[%clk 0:00:11]} 54... Rg6 {[%clk 0:01:36.5]} 55. Ka4 {[%clk 0:00:09.2]} 55...
Rg4 {[%clk 0:01:29.7]} 56. Kb3 {[%clk 0:00:06.8]} 56... Rg3+ {[%clk 0:01:27.5]}
57. Ka4 {[%clk 0:00:02]} 57... Rc3 {[%clk 0:01:27.3]} 0-1

[Event "*** Titled Tuesday Blitz"]
[Site "Chess.com"]
[Date "2020.05.05"]
[Round "1"]
[White "Love_craft"]
[Black "oskariot"]
[Result "0-1"]
[WhiteElo "2234"]
[BlackElo "2621"]
[TimeControl "180+1"]
[EndTime "10:07:05 PDT"]
[Termination "oskariot won on time"]

1. d4 {[%clk 0:02:59.1]} 1... Nf6 {[%clk 0:02:59.4]} 2. c4 {[%clk 0:02:59.1]}
2... c5 {[%clk 0:02:59.6]} 3. d5 {[%clk 0:02:58.4]} 3... b5 {[%clk 0:03:00.1]}
4. Qc2 {[%clk 0:02:52.8]} 4... bxc4 {[%clk 0:02:56.6]} 5. e4 {[%clk 0:02:51]}
5... d6 {[%clk 0:02:57.1]} 6. Bxc4 {[%clk 0:02:48.7]} 6... g6 {[%clk 0:02:57.6]}
7. Nf3 {[%clk 0:02:46.1]} 7... Bg7 {[%clk 0:02:58.1]} 8. O-O {[%clk 0:02:46.1]}
8... O-O {[%clk 0:02:58.6]} 9. h3 {[%clk 0:02:46.6]} 9... Ba6 {[%clk 0:02:56.6]}
10. Nbd2 {[%clk 0:02:46]} 10... Nfd7 {[%clk 0:02:50.1]} 11. Rb1 {[%clk
0:02:37.4]} 11... Nb6 {[%clk 0:02:46.7]} 12. Bxa6 {[%clk 0:02:33.7]} 12... Nxa6
{[%clk 0:02:46.5]} 13. a3 {[%clk 0:02:24.4]} 13... Rb8 {[%clk 0:02:14.1]} 14. b3
{[%clk 0:02:21.7]} 14... Qd7 {[%clk 0:02:07.6]} 15. Bb2 {[%clk 0:02:19.2]} 15...
Bxb2 {[%clk 0:02:02.9]} 16. Rxb2 {[%clk 0:02:20.1]} 16... Nc7 {[%clk 0:01:54]}
17. Nc4 {[%clk 0:01:55.1]} 17... f5 {[%clk 0:01:44.8]} 18. Ng5 {[%clk 0:01:31]}
18... fxe4 {[%clk 0:01:22.3]} 19. Nxb6 {[%clk 0:01:26.7]} 19... axb6 {[%clk
0:01:12.5]} 20. Qxe4 {[%clk 0:01:26.1]} 20... Rbe8 {[%clk 0:01:10.9]} 21. Ne6
{[%clk 0:01:21]} 21... Nxe6 {[%clk 0:01:06.5]} 22. dxe6 {[%clk 0:01:21.9]} 22...
Qc8 {[%clk 0:01:01.3]} 23. f4 {[%clk 0:01:15.4]} 23... Qa8 {[%clk 0:00:56]} 24.
Qe2 {[%clk 0:01:01.3]} 24... Qxa3 {[%clk 0:00:46.3]} 25. f5 {[%clk 0:01:01]}
25... Qb4 {[%clk 0:00:43.6]} 26. Qd3 {[%clk 0:00:11.8]} 26... gxf5 {[%clk
0:00:35.2]} 27. Rbf2 {[%clk 0:00:05.4]} 27... Qe4 {[%clk 0:00:28.6]} 28. Qg3+
{[%clk 0:00:04.6]} 28... Kh8 {[%clk 0:00:29.2]} 29. Rf4 {[%clk 0:00:02.2]} 29...
Qxe6 {[%clk 0:00:29]} 30. Qc3+ {[%clk 0:00:01.7]} 30... Qf6 {[%clk 0:00:26.3]}
31. Qf3 {[%clk 0:00:01.3]} 31... e6 {[%clk 0:00:24.4]} 32. Qg3 {[%clk
0:00:01.2]} 32... Rg8 {[%clk 0:00:24.3]} 33. Qf2 {[%clk 0:00:01.3]} 33... Qe5
{[%clk 0:00:24.3]} 0-1

[Event "*** Titled Tuesday Blitz"]
[Site "Chess.com"]
[Date "2020.05.05"]
[Round "1"]
[White "CakeinSpace2002"]
[Black "LawrenceTrent"]
[Result "1-0"]
[WhiteElo "2216"]
[BlackElo "2534"]
[TimeControl "180+1"]
[EndTime "10:07:05 PDT"]
[Termination "CakeinSpace2002 won by checkmate"]

1. e4 {[%clk 0:02:57.2]} 1... c5 {[%clk 0:03:00]} 2. Nf3 {[%clk 0:02:57]} 2...
Nc6 {[%clk 0:03:00.3]} 3. Bb5 {[%clk 0:02:56.7]} 3... g6 {[%clk 0:02:59.8]} 4.
Bxc6 {[%clk 0:02:56.6]} 4... bxc6 {[%clk 0:02:59]} 5. O-O {[%clk 0:02:56.2]}
5... Bg7 {[%clk 0:02:58.8]} 6. Re1 {[%clk 0:02:56.1]} 6... d6 {[%clk 0:02:56.3]}
7. e5 {[%clk 0:02:50.1]} 7... Bg4 {[%clk 0:02:46.7]} 8. h3 {[%clk 0:02:35.8]}
8... Bxf3 {[%clk 0:02:38.3]} 9. Qxf3 {[%clk 0:02:36.6]} 9... Bxe5 {[%clk
0:02:33.9]} 10. Qxc6+ {[%clk 0:02:31.1]} 10... Kf8 {[%clk 0:02:33.1]} 11. d3
{[%clk 0:02:25.1]} 11... h5 {[%clk 0:02:33]} 12. Nc3 {[%clk 0:02:23.4]} 12...
Nf6 {[%clk 0:02:33.1]} 13. f4 {[%clk 0:02:08.6]} 13... Bd4+ {[%clk 0:02:32.5]}
14. Be3 {[%clk 0:02:08.3]} 14... Bxc3 {[%clk 0:02:29.3]} 15. bxc3 {[%clk
0:02:06.4]} 15... Qc8 {[%clk 0:02:28.1]} 16. Qf3 {[%clk 0:02:04.8]} 16... Kg7
{[%clk 0:02:21.8]} 17. c4 {[%clk 0:01:55]} 17... Rb8 {[%clk 0:02:19]} 18. Bd2
{[%clk 0:01:41.7]} 18... Rb2 {[%clk 0:02:03.5]} 19. Rxe7 {[%clk 0:01:38]} 19...
Rxc2 {[%clk 0:02:01.1]} 20. Ba5 {[%clk 0:01:11.2]} 20... Re8 {[%clk 0:01:55.8]}
21. Rae1 {[%clk 0:01:10]} 21... Rxe7 {[%clk 0:01:48.5]} 22. Rxe7 {[%clk
0:01:10.9]} 22... Rxa2 {[%clk 0:01:47.4]} 23. Bc7 {[%clk 0:01:05]} 23... Ra6
{[%clk 0:01:24.7]} 24. d4 {[%clk 0:00:55.4]} 24... cxd4 {[%clk 0:01:23.1]} 25.
c5 {[%clk 0:00:54.3]} 25... dxc5 {[%clk 0:01:19.3]} 26. Be5 {[%clk 0:00:53.9]}
26... Re6 {[%clk 0:01:13.7]} 27. Rxa7 {[%clk 0:00:43.4]} 27... Qd8 {[%clk
0:01:10.6]} 28. Qb7 {[%clk 0:00:40.9]} 28... Qe8 {[%clk 0:01:02.4]} 29. Ra8
{[%clk 0:00:36.1]} 29... Qd7 {[%clk 0:00:56.4]} 30. Qb8 {[%clk 0:00:35.6]} 30...
g5 {[%clk 0:00:32.1]} 31. Qg8+ {[%clk 0:00:28]} 31... Kh6 {[%clk 0:00:30]} 32.
fxg5# {[%clk 0:00:21.7]} 1-0

[Event "*** Titled Tuesday Blitz"]
[Site "Chess.com"]
[Date "2020.05.05"]
[Round "1"]
[White "AvitalBor"]
[Black "Bacyanide"]
[Result "1-0"]
[WhiteElo "2827"]
[BlackElo "2428"]
[TimeControl "180+1"]
[EndTime "10:07:06 PDT"]
[Termination "AvitalBor won by checkmate"]

1. d4 {[%clk 0:03:00.9]} 1... d5 {[%clk 0:02:58.7]} 2. Nf3 {[%clk 0:03:01]} 2...
Nf6 {[%clk 0:02:58]} 3. g3 {[%clk 0:03:00.6]} 3... e6 {[%clk 0:02:57.1]} 4. Bg2
{[%clk 0:03:01.2]} 4... c5 {[%clk 0:02:57.6]} 5. O-O {[%clk 0:03:01.8]} 5... Nc6
{[%clk 0:02:57.8]} 6. c4 {[%clk 0:02:59.9]} 6... cxd4 {[%clk 0:02:57.7]} 7. Nxd4
{[%clk 0:02:59.6]} 7... Bc5 {[%clk 0:02:57.6]} 8. Nxc6 {[%clk 0:02:59.5]} 8...
bxc6 {[%clk 0:02:57.7]} 9. Nc3 {[%clk 0:02:59.8]} 9... O-O {[%clk 0:02:56.7]}
10. Qc2 {[%clk 0:03:00]} 10... Bd6 {[%clk 0:02:35.6]} 11. Rd1 {[%clk 0:02:58.6]}
11... Qe7 {[%clk 0:02:35.2]} 12. Bg5 {[%clk 0:02:53.4]} 12... h6 {[%clk
0:02:02.6]} 13. Bxf6 {[%clk 0:02:53.2]} 13... Qxf6 {[%clk 0:02:03.5]} 14. Ne4
{[%clk 0:02:53.5]} 14... Qe7 {[%clk 0:01:58.9]} 15. Nxd6 {[%clk 0:02:53.2]}
15... Qxd6 {[%clk 0:01:59.8]} 16. e4 {[%clk 0:02:53.4]} 16... Bb7 {[%clk
0:01:50]} 17. c5 {[%clk 0:02:48.7]} 17... Qc7 {[%clk 0:01:41.9]} 18. Rd2 {[%clk
0:02:46.5]} 18... a5 {[%clk 0:01:41.2]} 19. Rad1 {[%clk 0:02:44.3]} 19... Ba6
{[%clk 0:01:37.9]} 20. h4 {[%clk 0:02:43.9]} 20... Rab8 {[%clk 0:01:37.2]} 21.
a3 {[%clk 0:02:35.4]} 21... Rb7 {[%clk 0:01:33.6]} 22. Rd4 {[%clk 0:02:09.1]}
22... Rfb8 {[%clk 0:01:33.1]} 23. exd5 {[%clk 0:02:05]} 23... exd5 {[%clk
0:01:20.4]} 24. R1d2 {[%clk 0:02:02.4]} 24... Qe5 {[%clk 0:01:14.6]} 25. Qc3
{[%clk 0:01:56.2]} 25... Qf6 {[%clk 0:01:12.8]} 26. Qxa5 {[%clk 0:01:52.7]}
26... Bc4 {[%clk 0:00:59.8]} 27. Qc3 {[%clk 0:01:21.5]} 27... Rb3 {[%clk
0:00:58.5]} 28. Qc1 {[%clk 0:01:21.4]} 28... R8b5 {[%clk 0:00:52.5]} 29. Rf4
{[%clk 0:00:54]} 29... Qe5 {[%clk 0:00:50.7]} 30. Rxc4 {[%clk 0:00:50.4]} 30...
dxc4 {[%clk 0:00:46.6]} 31. Rd8+ {[%clk 0:00:50.1]} 31... Kh7 {[%clk 0:00:44.9]}
32. Qxc4 {[%clk 0:00:50]} 32... Qf6 {[%clk 0:00:33.7]} 33. Qe4+ {[%clk
0:00:35.6]} 33... g6 {[%clk 0:00:33.7]} 34. Qe8 {[%clk 0:00:35.8]} 34... Qg7
{[%clk 0:00:31.9]} 35. Rd7 {[%clk 0:00:36.1]} 35... Rb7 {[%clk 0:00:30.7]} 36.
Rxb7 {[%clk 0:00:26]} 36... Rxb7 {[%clk 0:00:31.6]} 37. b4 {[%clk 0:00:26]}
37... Qa1+ {[%clk 0:00:27]} 38. Kh2 {[%clk 0:00:25.9]} 38... Qxa3 {[%clk
0:00:25.4]} 39. Bxc6 {[%clk 0:00:25]} 39... Ra7 {[%clk 0:00:24.7]} 40. Bd5
{[%clk 0:00:24.1]} 40... Qxb4 {[%clk 0:00:21.7]} 41. Bxf7 {[%clk 0:00:21.6]}
41... Qxc5 {[%clk 0:00:21.2]} 42. Qg8# {[%clk 0:00:21.4]} 1-0

[Event "*** Titled Tuesday Blitz"]
[Site "Chess.com"]
[Date "2020.05.05"]
[Round "1"]
[White "Sjakkerntobi"]
[Black "RitvarsReimanis"]
[Result "1-0"]
[WhiteElo "2229"]
[BlackElo "2540"]
[TimeControl "180+1"]
[EndTime "10:07:07 PDT"]
[Termination "Sjakkerntobi won by resignation"]

1. e4 {[%clk 0:03:00.4]} 1... c5 {[%clk 0:02:58.9]} 2. Nf3 {[%clk 0:03:00.2]}
2... Nc6 {[%clk 0:02:57.7]} 3. d4 {[%clk 0:03:00.2]} 3... cxd4 {[%clk
0:02:58.6]} 4. Nxd4 {[%clk 0:03:01]} 4... Nf6 {[%clk 0:02:55.4]} 5. Nc3 {[%clk
0:03:00.9]} 5... e5 {[%clk 0:02:50.7]} 6. Ndb5 {[%clk 0:03:00]} 6... d6 {[%clk
0:02:49.3]} 7. a4 {[%clk 0:02:54.1]} 7... a6 {[%clk 0:02:30.7]} 8. Na3 {[%clk
0:02:53.8]} 8... Bg4 {[%clk 0:02:31.3]} 9. Be2 {[%clk 0:02:52.1]} 9... Bxe2
{[%clk 0:02:21]} 10. Qxe2 {[%clk 0:02:53]} 10... Nd4 {[%clk 0:02:20.7]} 11. Qd3
{[%clk 0:02:48.2]} 11... d5 {[%clk 0:02:07.1]} 12. exd5 {[%clk 0:02:32.8]} 12...
Nxd5 {[%clk 0:02:06.1]} 13. Nxd5 {[%clk 0:02:33.7]} 13... Qxd5 {[%clk
0:02:05.9]} 14. O-O {[%clk 0:02:29.5]} 14... Rd8 {[%clk 0:01:54.2]} 15. Re1
{[%clk 0:02:25.1]} 15... Be7 {[%clk 0:01:53.5]} 16. Nc4 {[%clk 0:02:17.2]} 16...
Nc6 {[%clk 0:01:25.4]} 17. Qxd5 {[%clk 0:02:03.4]} 17... Rxd5 {[%clk 0:01:25.5]}
18. c3 {[%clk 0:02:04.3]} 18... f6 {[%clk 0:01:15.1]} 19. Be3 {[%clk 0:02:02.9]}
19... Kf7 {[%clk 0:01:14.1]} 20. Kf1 {[%clk 0:02:02.3]} 20... Rhd8 {[%clk
0:01:13.3]} 21. Ke2 {[%clk 0:02:01.9]} 21... Bc5 {[%clk 0:01:10.8]} 22. Rad1
{[%clk 0:02:00.4]} 22... Bxe3 {[%clk 0:01:09.7]} 23. Nxe3 {[%clk 0:01:59.9]}
23... R5d7 {[%clk 0:00:39.5]} 24. Rxd7+ {[%clk 0:01:56.9]} 24... Rxd7 {[%clk
0:00:40.4]} 25. Rd1 {[%clk 0:01:57.7]} 25... Rxd1 {[%clk 0:00:30.6]} 26. Kxd1
{[%clk 0:01:58.6]} 26... Ke6 {[%clk 0:00:30.2]} 27. Kc2 {[%clk 0:01:53.6]} 27...
f5 {[%clk 0:00:29.7]} 28. b4 {[%clk 0:01:53]} 28... e4 {[%clk 0:00:28.2]} 29.
Nc4 {[%clk 0:01:47]} 29... f4 {[%clk 0:00:23]} 30. Kd2 {[%clk 0:01:47]} 30... g5
{[%clk 0:00:19.3]} 31. Ke2 {[%clk 0:01:45.4]} 31... Kd5 {[%clk 0:00:18.2]} 32.
Nd2 {[%clk 0:01:44.6]} 32... Ne5 {[%clk 0:00:16.4]} 33. g3 {[%clk 0:01:41.9]}
33... Nc4 {[%clk 0:00:14.5]} 34. Nb3 {[%clk 0:01:35.8]} 34... f3+ {[%clk
0:00:13]} 35. Ke1 {[%clk 0:01:36.2]} 35... e3 {[%clk 0:00:11.1]} 36. fxe3 {[%clk
0:01:37.1]} 36... Nxe3 {[%clk 0:00:11.9]} 37. Kf2 {[%clk 0:01:37.6]} 37... Nd1+
{[%clk 0:00:12.4]} 38. Kxf3 {[%clk 0:01:38.1]} 38... Nxc3 {[%clk 0:00:13.3]} 39.
Nc5 {[%clk 0:01:38.6]} 39... b6 {[%clk 0:00:12.8]} 40. Nxa6 {[%clk 0:01:39.1]}
40... Nxa4 {[%clk 0:00:13.5]} 41. Kg4 {[%clk 0:01:38.2]} 41... Kc4 {[%clk
0:00:09.1]} 42. Kxg5 {[%clk 0:01:38.4]} 42... Kb5 {[%clk 0:00:09.3]} 43. Nc7+
{[%clk 0:01:38.6]} 43... Kxb4 {[%clk 0:00:09.3]} 44. Kh6 {[%clk 0:01:38.3]}
44... Kc5 {[%clk 0:00:08.8]} 45. Kxh7 {[%clk 0:01:36.7]} 45... Kc6 {[%clk
0:00:09.2]} 46. Ne6 {[%clk 0:01:35.5]} 46... Kd5 {[%clk 0:00:09.2]} 47. Nf4+
{[%clk 0:01:34.1]} 47... Kd4 {[%clk 0:00:09]} 48. Ne6+ {[%clk 0:01:34]} 48...
Kd5 {[%clk 0:00:09]} 49. Nc7+ {[%clk 0:01:34.3]} 49... Kc6 {[%clk 0:00:09.2]}
50. Na6 {[%clk 0:01:34.5]} 50... Kb5 {[%clk 0:00:08.6]} 51. Nb8 {[%clk
0:01:32.6]} 51... Kc4 {[%clk 0:00:08.3]} 52. Nd7 {[%clk 0:01:32.9]} 52... b5
{[%clk 0:00:08]} 53. Ne5+ {[%clk 0:01:33.4]} 53... Kc5 {[%clk 0:00:07.9]} 54.
Nd3+ {[%clk 0:01:33.8]} 54... Kc4 {[%clk 0:00:08.2]} 55. Ne5+ {[%clk 0:01:33.7]}
55... Kc3 {[%clk 0:00:08.7]} 56. Nc6 {[%clk 0:01:33]} 56... Kc4 {[%clk
0:00:08.2]} 57. g4 {[%clk 0:01:31.8]} 57... Kc5 {[%clk 0:00:08.8]} 58. g5 {[%clk
0:01:30.1]} 58... Kxc6 {[%clk 0:00:06.1]} 59. g6 {[%clk 0:01:30.6]} 59... Nc5
{[%clk 0:00:03.8]} 60. g7 {[%clk 0:01:30.9]} 60... Nd7 {[%clk 0:00:04.4]} 61.
Kg6 {[%clk 0:01:28]} 61... Ne5+ {[%clk 0:00:04.9]} 62. Kf6 {[%clk 0:01:27]}
62... Nd7+ {[%clk 0:00:04.9]} 63. Ke7 {[%clk 0:01:26.8]} 1-0

[Event "*** Titled Tuesday Blitz"]
[Site "Chess.com"]
[Date "2020.05.05"]
[Round "1"]
[White "levallem"]
[Black "chegueps"]
[Result "0-1"]
[WhiteElo "2126"]
[BlackElo "2510"]
[TimeControl "180+1"]
[EndTime "10:07:07 PDT"]
[Termination "chegueps won by resignation"]

1. d4 {[%clk 0:02:58.8]} 1... Nf6 {[%clk 0:02:59.9]} 2. c4 {[%clk 0:02:51.1]}
2... e6 {[%clk 0:03:00.2]} 3. Nc3 {[%clk 0:02:50.2]} 3... Bb4 {[%clk 0:02:59.1]}
4. Bd2 {[%clk 0:02:48.3]} 4... O-O {[%clk 0:02:56.3]} 5. e3 {[%clk 0:02:48.2]}
5... d5 {[%clk 0:02:55.2]} 6. a3 {[%clk 0:02:45.7]} 6... Bxc3 {[%clk 0:02:54]}
7. Bxc3 {[%clk 0:02:46.6]} 7... Ne4 {[%clk 0:02:54.9]} 8. Qb3 {[%clk 0:02:42.1]}
8... c5 {[%clk 0:02:47.4]} 9. Nf3 {[%clk 0:02:36.6]} 9... Nc6 {[%clk 0:02:43]}
10. Rd1 {[%clk 0:02:27.1]} 10... Na5 {[%clk 0:02:30.1]} 11. Qc2 {[%clk
0:02:15.7]} 11... cxd4 {[%clk 0:02:02.9]} 12. Rxd4 {[%clk 0:01:58.4]} 12... Nxc3
{[%clk 0:01:59.5]} 13. Qxc3 {[%clk 0:01:56.7]} 13... Nc6 {[%clk 0:02:00.1]} 14.
Rd2 {[%clk 0:01:39.2]} 14... Qe7 {[%clk 0:01:59.9]} 15. cxd5 {[%clk 0:01:37.8]}
15... exd5 {[%clk 0:02:00.8]} 16. Rxd5 {[%clk 0:01:35.1]} 16... Be6 {[%clk
0:01:58.6]} 17. Rc5 {[%clk 0:01:33.2]} 17... Rac8 {[%clk 0:01:47.8]} 18. Bb5
{[%clk 0:01:30.7]} 18... Na5 {[%clk 0:01:42.8]} 19. Rxc8 {[%clk 0:01:02.8]}
19... Rxc8 {[%clk 0:01:43.7]} 20. Qxa5 {[%clk 0:00:52.4]} 20... Rc1+ {[%clk
0:01:41.7]} 21. Ke2 {[%clk 0:00:52.6]} 21... Rxh1 {[%clk 0:01:40.6]} 22. Qxa7
{[%clk 0:00:52.7]} 22... g6 {[%clk 0:01:31.6]} 23. Qb8+ {[%clk 0:00:45]} 23...
Kg7 {[%clk 0:01:30.3]} 24. Qe5+ {[%clk 0:00:36.7]} 24... Qf6 {[%clk 0:01:30.1]}
25. Qxf6+ {[%clk 0:00:27.4]} 25... Kxf6 {[%clk 0:01:31]} 26. Kd2 {[%clk
0:00:22.5]} 26... Bd5 {[%clk 0:01:27.8]} 27. Be2 {[%clk 0:00:20.6]} 27... g5
{[%clk 0:01:21.6]} 28. h3 {[%clk 0:00:20.2]} 28... h5 {[%clk 0:01:18.2]} 29. Kc3
{[%clk 0:00:16.2]} 29... g4 {[%clk 0:01:03]} 30. hxg4 {[%clk 0:00:17.1]} 30...
hxg4 {[%clk 0:01:03.9]} 31. Nd4 {[%clk 0:00:16.2]} 31... Kg5 {[%clk 0:01:03.6]}
32. f3 {[%clk 0:00:14.9]} 32... g3 {[%clk 0:00:51.9]} 33. f4+ {[%clk 0:00:14.5]}
33... Kf6 {[%clk 0:00:50.4]} 34. Nf3 {[%clk 0:00:14.5]} 34... Rh2 {[%clk
0:00:48.2]} 35. Ne1 {[%clk 0:00:08.9]} 35... Bxg2 {[%clk 0:00:47.2]} 36. b4
{[%clk 0:00:04]} 36... Bc6 {[%clk 0:00:45.7]} 37. Bd3 {[%clk 0:00:01.8]} 37...
Rh1 {[%clk 0:00:43.7]} 38. Ng2 {[%clk 0:00:02.5]} 38... Bxg2 {[%clk 0:00:43.3]}
0-1